fUSD/lending_fUSD_20250606
["ID","MTS","AMOUNT","RATE_DAILY","PERIOD"]
[364764217,1749232254504,-1427.53,0.00027726,5]
[364764218,1749232254513,-480.0,0.00027726,5]
[364764219,1749232254522,-515.9,0.00027726,5]
[364764220,1749232254531,-699.94,0.00027726,5]
[364764221,1749232254540,-1320.37,0.00027726,5]
[364764222,1749232254549,-480.0,0.00027726,5]
[364764223,1749232254558,-6585.63,0.00027726,5]
[364764224,1749232254567,-480.0,0.00027726,5]
[364764225,1749232254578,-963.11,0.00027726,5]
[364764226,1749232254589,-543.07,0.00027726,5]
[364764227,1749232254598,-480.0,0.00027726,5]
[364764228,1749232254607,-2238.96,0.00027726,5]
[364764229,1749232254616,-480.0,0.00027726,5]
[364764230,1749232254625,-415.36676918,0.00027726,5]
[364764231,1749232254634,-480.0,0.00027726,5]
[364764232,1749232254643,-480.0,0.00027726,5]
[364764233,1749232254652,-503.82,0.00027726,5]
[364764234,1749232254661,-480.0,0.00027726,5]
[364764235,1749232254670,-480.0,0.00027726,5]
[364764236,1749232254679,-5689.11,0.00027726,5]
[364764237,1749232254688,-480.0,0.00027726,5]
[364764238,1749232254697,-624.07,0.00027726,5]
[364764239,1749232254706,-502.56,0.00027726,5]
[364764240,1749232254715,-589.72,0.00027726,5]
[364764241,1749232254724,-480.0,0.00027726,5]
[364764242,1749232254733,-480.0,0.00027726,5]
[364764243,1749232254742,-480.0,0.00027726,5]
[364764244,1749232254751,-1738.52,0.00027726,5]
[364764245,1749232254761,-2039.06,0.00027726,5]
[364764246,1749232254770,-480.0,0.00027726,5]
[364764247,1749232254779,-480.0,0.00027726,5]
[364764248,1749232254788,-1704.16,0.00027726,5]
[364764249,1749232254797,-4049.17,0.00027726,5]
[364764250,1749232254806,-480.0,0.00027726,5]
[364764251,1749232254815,-2523.1,0.00027726,5]
[364764252,1749232254824,-480.0,0.00027726,5]
[364764253,1749232254834,-480.0,0.00027726,5]
[364764254,1749232254843,-480.0,0.00027726,5]
[364764255,1749232254852,-1489.66,0.00027726,5]
[364764256,1749232254861,-1394.31,0.00027726,5]
[364764257,1749232254870,-480.0,0.00027726,5]
[364764258,1749232254879,-13047.26,0.00027726,5]
[364764259,1749232254889,-480.0,0.00027726,5]
[364764260,1749232254898,-824.96,0.00027726,5]
[364764261,1749232254907,-480.0,0.00027726,5]
[364764262,1749232254916,-1833.77,0.00027726,5]
[364764263,1749232254925,-512.45,0.00027726,5]
[364764264,1749232254934,-480.0,0.00027726,5]
[364764265,1749232254943,-795.02,0.00027726,5]
[364764266,1749232254952,-960.81,0.00027726,5]
[364764267,1749232254962,-953.38,0.00027726,5]
[364764268,1749232254971,-585.62,0.00027726,5]
[364764269,1749232254980,-1623.99,0.00027726,5]
[364764270,1749232254989,-567.44,0.00027726,5]
[364764271,1749232254998,-1506.02,0.00027726,5]
[364764272,1749232255007,-667.23,0.00027726,5]
[364764273,1749232255017,-480.0,0.00027726,5]
[364764274,1749232255026,-480.0,0.00027726,5]
[364764275,1749232255036,-1950.34,0.00027726,5]
[364764276,1749232255045,-2303.58,0.00027726,5]
[364764277,1749232255054,-540.83,0.00027726,5]
[364764278,1749232255063,-1340.96,0.00027726,5]
[364764279,1749232255072,-480.0,0.00027726,5]
[364764280,1749232255081,-957.47,0.00027726,5]
[364764281,1749232255090,-606.43,0.00027726,5]
[364764282,1749232255100,-582.38,0.00027726,5]
[364764283,1749232255109,-2526.43,0.00027726,5]
[364764284,1749232255118,-480.0,0.00027726,5]
[364764285,1749232255128,-517.73,0.00027726,5]
[364764286,1749232255137,-486.12,0.00027726,5]
[364764287,1749232255147,-480.0,0.00027726,5]
[364764288,1749232255158,-480.0,0.00027726,5]
[364764289,1749232255167,-480.0,0.00027726,5]
[364764290,1749232255177,-480.0,0.00027726,2]
[364764291,1749232255186,-3628.25,0.00027726,5]
[364764292,1749232255195,-2448.87,0.00027726,5]
[364764293,1749232255204,-520.55,0.00027726,5]
[364764294,1749232255214,-480.0,0.00027726,5]
[364764295,1749232255223,-480.0,0.00027726,5]
[364764296,1749232255232,-567.01,0.00027726,5]
[364764297,1749232255241,-1108.87,0.00027726,5]
[364764298,1749232255250,-718.02,0.00027726,5]
[364764299,1749232255259,-46728.91,0.00027726,5]
[364764300,1749232255268,-618.44,0.00027726,5]
[364764301,1749232255277,-480.0,0.00027726,5]
[364764302,1749232255286,-480.0,0.00027726,5]
[364764303,1749232255295,-480.0,0.00027726,5]
[364764304,1749232255304,-490.28,0.00027726,5]
[364764305,1749232255313,-480.0,0.00027726,5]
[364764306,1749232255322,-480.0,0.00027726,5]
[364764307,1749232255331,-1380.27,0.00027726,5]
[364764308,1749232255340,-2834.51,0.00027726,5]
[364764309,1749232255349,-4546.68,0.00027726,5]
[364764310,1749232255358,-1547.97,0.00027726,5]
[364764311,1749232255367,-500.0,0.00027727,2]
[364764312,1749232255376,-500.0,0.00027773,5]
[364764313,1749232255386,-514.15,0.00027807,5]
[364764314,1749232255395,-4799.293659,0.00027808,2]
[364764315,1749232255408,-150.0,0.00027832,2]
[364764316,1749232255418,-500.0,0.00027888,2]
[364764317,1749232255427,-500.0,0.00027889,2]
[364764318,1749232255436,-500.0,0.00027889,5]
[364764319,1749232255446,-150.0,0.00027889,2]
[364764320,1749232255455,-198.50993725,0.00027889,2]
[364764321,1749232255464,-708.55,0.00027889,5]
[364764322,1749232255476,-514.15,0.00027889,5]
[364764323,1749232255487,-480.0,0.0002789,5]
[364764324,1749232255497,-480.0,0.0002789,5]
[364764325,1749232255506,-371.35123458,0.0002789,5]
[364764326,1749232255516,-600.0,0.0002789,30]
[364764327,1749232255526,-480.0,0.0002789,5]
[364764328,1749232255535,-480.0,0.0002789,5]
[364764329,1749232255544,-480.0,0.0002789,5]
[364764330,1749232255553,-169.38720944,0.0002789,5]
[364764331,1749232255563,-480.0,0.0002789,5]
[364764332,1749232255573,-896.75,0.0002789,5]
[364764333,1749232255583,-480.0,0.0002789,5]
[364764334,1749232255593,-480.0,0.0002789,5]
[364764335,1749232255603,-480.0,0.0002789,5]
[364764336,1749232255613,-480.0,0.0002789,5]
[364764337,1749232255623,-480.0,0.0002789,5]
[364764338,1749232255633,-630.9,0.0002789,5]
[364764339,1749232255642,-480.0,0.0002789,5]
[364764340,1749232255651,-777.390373,0.0002789,5]
[364764341,1749232255661,-480.0,0.0002789,5]
[364764342,1749232255671,-480.0,0.0002789,5]
[364764343,1749232255681,-300.23951059,0.0002789,5]
[364764344,1749232255690,-480.0,0.0002789,5]
[364764345,1749232255699,-480.0,0.0002789,5]
[364764346,1749232255708,-480.0,0.0002789,5]
[364764347,1749232255717,-928.199775,0.0002789,5]
[364764348,1749232255727,-481.88,0.0002789,5]
[364764349,1749232255736,-480.0,0.0002789,5]
[364764350,1749232255746,-480.0,0.0002789,5]
[364764351,1749232255755,-480.0,0.0002789,5]
[364764352,1749232255764,-415.24672384,0.0002789,5]
[364764353,1749232255774,-480.0,0.0002789,5]
[364764354,1749232255783,-549.3699348,0.0002789,5]
[364764355,1749232255792,-480.0,0.0002789,5]
[364764356,1749232255802,-480.0,0.0002789,5]
[364764357,1749232255813,-480.0,0.0002789,5]
[364764358,1749232255823,-1468.86,0.0002789,5]
[364764359,1749232255833,-480.0,0.0002789,5]
[364764360,1749232255842,-536.62,0.0002789,5]
[364764361,1749232255851,-480.0,0.0002789,5]
[364764362,1749232255861,-480.0,0.0002789,5]
[364764363,1749232255871,-480.0,0.0002789,5]
[364764364,1749232255881,-1047.33,0.0002789,5]
[364764365,1749232255890,-480.0,0.0002789,5]
[364764366,1749232255901,-548.21,0.0002789,5]
[364764367,1749232255910,-480.0,0.0002789,5]
[364764368,1749232255919,-506.36,0.0002789,5]
[364764369,1749232255929,-655.25,0.0002789,5]
[364764370,1749232255939,-480.0,0.0002789,5]
[364764371,1749232255948,-562.91,0.0002789,5]
[364764372,1749232255957,-480.0,0.0002789,5]
[364764373,1749232255967,-681.75,0.0002789,5]
[364764374,1749232255976,-1022.98,0.0002789,5]
[364764375,1749232255985,-1085.93,0.0002789,5]
[364764376,1749232255995,-480.0,0.0002789,5]
[364764377,1749232256005,-480.0,0.0002789,5]
[364764378,1749232256015,-1146.93,0.0002789,5]
[364764379,1749232256024,-480.0,0.0002789,5]
[364764380,1749232256034,-480.0,0.0002789,5]
[364764381,1749232256043,-480.0,0.0002789,5]
[364764382,1749232256053,-778.09,0.0002789,5]
[364764383,1749232256063,-480.0,0.0002789,5]
[364764384,1749232256073,-480.0,0.0002789,5]
[364764385,1749232256082,-559.45,0.0002789,5]
[364764386,1749232256093,-498.25,0.0002789,5]
[364764387,1749232256102,-480.0,0.0002789,5]
[364764388,1749232256112,-480.0,0.0002789,5]
[364764389,1749232256122,-625.11826945,0.0002789,5]
[364764390,1749232256131,-480.0,0.0002789,5]
[364764391,1749232256140,-480.0,0.0002789,5]
[364764392,1749232256150,-480.0,0.0002789,5]
[364764393,1749232256159,-733.4,0.0002789,5]
[364764394,1749232256169,-256.28023242,0.0002789,5]
[364764395,1749232256179,-589.09,0.0002789,5]
[364764396,1749232256188,-480.0,0.0002789,5]
[364764397,1749232256197,-300.0,0.0002789,5]
[364764398,1749232256207,-480.0,0.0002789,5]
[364764399,1749232256216,-484.02,0.0002789,5]
[364764400,1749232256225,-1153.9,0.0002789,5]
[364764401,1749232256236,-480.0,0.0002789,5]
[364764402,1749232256245,-480.0,0.0002789,5]
[364764403,1749232256255,-903.84,0.0002789,5]
[364764404,1749232256264,-480.0,0.0002789,5]
[364764405,1749232256274,-530.62445194,0.0002789,5]
[364764406,1749232256283,-556.62,0.0002789,5]
[364764407,1749232256293,-981.49,0.0002789,5]
[364764408,1749232256302,-480.0,0.0002789,5]
[364764409,1749232256311,-964.66,0.0002789,5]
[364764410,1749232256320,-678.4,0.0002789,5]
[364764411,1749232256329,-480.0,0.0002789,5]
[364764412,1749232256338,-480.0,0.0002789,5]
[364764413,1749232256347,-889.12,0.0002789,5]
[364764414,1749232256357,-480.0,0.0002789,5]
[364764415,1749232256366,-521.62,0.0002789,5]
[364764416,1749232256375,-480.0,0.0002789,5]
[364764417,1749232256384,-636.54,0.0002789,5]
[364764418,1749232256394,-733.8,0.0002789,5]
[364764419,1749232256406,-480.0,0.0002789,5]
[364764420,1749232256415,-711.04,0.0002789,5]
[364764421,1749232256424,-480.0,0.0002789,5]
[364764422,1749232256433,-480.0,0.0002789,5]
[364764423,1749232256442,-480.0,0.0002789,5]
[364764424,1749232256452,-480.0,0.0002789,5]
[364764425,1749232256461,-593.03,0.0002789,5]
[364764426,1749232256470,-480.0,0.0002789,5]
[364764427,1749232256484,-1263.91,0.0002789,5]
[364764428,1749232256494,-661.04,0.0002789,5]
[364764429,1749232256503,-1568.4,0.0002789,5]
[364764430,1749232256512,-502.9,0.0002789,5]
[364764431,1749232256521,-480.0,0.0002789,5]
[364764432,1749232256530,-480.0,0.0002789,5]
[364764433,1749232256539,-480.0,0.0002789,5]
[364764434,1749232256548,-480.0,0.0002789,5]
[364764435,1749232256557,-562.99,0.0002789,5]
[364764436,1749232256566,-480.0,0.0002789,5]
[364764437,1749232256575,-963.1,0.0002789,5]
[364764438,1749232256585,-480.0,0.0002789,5]
[364764439,1749232256595,-584.26,0.0002789,5]
[364764440,1749232256604,-480.0,0.0002789,5]
[364764441,1749232256613,-480.0,0.0002789,5]
[364764442,1749232256622,-783.55,0.0002789,5]
[364764443,1749232256631,-694.01,0.0002789,5]
[364764444,1749232256641,-480.0,0.0002789,5]
[364764445,1749232256650,-770.15,0.0002789,5]
[364764446,1749232256659,-480.0,0.0002789,5]
[364764447,1749232256667,-489.3,0.0002789,5]
[364764448,1749232256676,-258.749831,0.0002789,5]
[364764449,1749232256685,-1274.86,0.0002789,5]
[364764450,1749232256694,-534.72,0.0002789,5]
[364764451,1749232256703,-753.93,0.0002789,5]
[364764452,1749232256712,-480.0,0.0002789,5]
[364764453,1749232256723,-1368.77,0.0002789,5]
[364764454,1749232256732,-480.0,0.0002789,5]
[364764455,1749232256741,-1051.49,0.0002789,5]
[364764456,1749232256750,-858.86,0.0002789,5]
[364764457,1749232256759,-572.72,0.0002789,5]
[364764458,1749232256768,-484.5,0.0002789,5]
[364764459,1749232256778,-7667.73,0.0002789,5]
[364764460,1749232256786,-826.1,0.0002789,5]
[364764461,1749232256795,-2263.03,0.0002789,5]
[364764462,1749232256805,-4219.38,0.0002789,5]
[364764463,1749232256814,-1005.48,0.0002789,5]
[364764464,1749232256823,-714.02,0.0002789,5]
[364764465,1749232256831,-480.0,0.0002789,5]
[364764466,1749232256841,-480.0,0.0002789,5]
[364764467,1749232256850,-480.0,0.0002789,5]
[364764468,1749232256859,-853.91,0.0002789,5]
[364764469,1749232256868,-1449.47,0.0002789,5]
[364764470,1749232256877,-6635.09,0.0002789,5]
[364764471,1749232256887,-480.0,0.0002789,5]
[364764472,1749232256896,-480.0,0.0002789,5]
[364764473,1749232256906,-480.0,0.0002789,5]
[364764474,1749232256915,-501.24,0.0002789,5]
[364764475,1749232256924,-3881.8,0.0002789,5]
[364764476,1749232256933,-480.0,0.0002789,5]
[364764477,1749232256943,-2521.17,0.0002789,5]
[364764478,1749232256952,-480.0,0.0002789,5]
[364764479,1749232256962,-1000.0,0.0002789,5]
[364764480,1749232256971,-480.0,0.0002789,5]
[364764481,1749232256980,-503.15,0.0002789,5]
[364764482,1749232256990,-674.03,0.0002789,5]
[364764483,1749232256998,-480.0,0.0002789,5]
[364764484,1749232257008,-480.0,0.0002789,5]
[364764485,1749232257019,-790.26,0.0002789,5]
[364764486,1749232257028,-480.0,0.0002789,5]
[364764487,1749232257037,-1159.15,0.0002789,5]
[364764488,1749232257046,-480.0,0.0002789,5]
[364764489,1749232257055,-945.96,0.0002789,5]
[364764490,1749232257065,-480.0,0.0002789,5]
[364764491,1749232257073,-9400.84,0.0002789,5]
[364764492,1749232257083,-1025.22,0.0002789,5]
[364764493,1749232257091,-840.87,0.0002789,5]
[364764494,1749232257100,-497.59,0.0002789,5]
[364764495,1749232257110,-480.0,0.0002789,5]
[364764496,1749232257119,-480.0,0.0002789,5]
[364764497,1749232257128,-998.42,0.0002789,5]
[364764498,1749232257137,-529.79,0.0002789,5]
[364764499,1749232257146,-1301.33,0.0002789,5]
[364764500,1749232257155,-1362.78,0.0002789,5]
[364764501,1749232257164,-1124.54,0.0002789,5]
[364764502,1749232257174,-878.04,0.0002789,5]
[364764503,1749232257183,-480.0,0.0002789,5]
[364764504,1749232257192,-480.0,0.0002789,5]
[364764505,1749232257200,-480.0,0.0002789,5]
[364764506,1749232257210,-876.69,0.0002789,5]
[364764507,1749232257219,-1190.68,0.0002789,5]
[364764508,1749232257233,-1561.38,0.0002789,5]
[364764509,1749232257243,-563.97,0.0002789,5]
[364764510,1749232257251,-719.53,0.0002789,5]
[364764511,1749232257260,-1158.61,0.0002789,5]
[364764512,1749232257270,-480.0,0.0002789,5]
[364764513,1749232257279,-607.42,0.0002789,5]
[364764514,1749232257288,-480.0,0.0002789,5]
[364764515,1749232257297,-975.39,0.0002789,5]
[364764516,1749232257306,-2546.76,0.0002789,5]
[364764517,1749232257315,-3925.33,0.0002789,5]
[364764518,1749232257325,-480.0,0.0002789,5]
[364764519,1749232257334,-1292.48,0.0002789,5]
[364764520,1749232257343,-3258.84,0.0002789,5]
[364764521,1749232257352,-4483.52449,0.0002789,2]
[364764522,1749232257361,-1084.05,0.0002789,5]
[364764523,1749232257370,-480.0,0.0002789,5]
[364764524,1749232257379,-802.8,0.0002789,5]
[364764525,1749232257388,-480.0,0.0002789,5]
[364764526,1749232257399,-2408.27,0.0002789,5]
[364764527,1749232257410,-485.62,0.0002789,5]
[364764528,1749232257420,-1116.88,0.0002789,5]
[364764529,1749232257429,-864.58,0.0002789,5]
[364764530,1749232257439,-480.0,0.0002789,5]
[364764531,1749232257449,-1084.42,0.0002789,5]
[364764532,1749232257458,-1000.0,0.0002789,2]
[364764533,1749232257468,-480.0,0.0002789,5]
[364764534,1749232257479,-2033.06,0.0002789,5]
[364764535,1749232257488,-3682.99,0.0002789,5]
[364764536,1749232257498,-1300.74,0.0002789,5]
[364764537,1749232257507,-480.0,0.0002789,5]
[364764538,1749232257517,-929.02,0.0002789,5]
[364764539,1749232257527,-701.51,0.0002789,5]
[364764540,1749232257536,-480.0,0.0002789,5]
[364764541,1749232257545,-480.0,0.0002789,5]
[364764542,1749232257555,-692.25,0.0002789,5]
[364764543,1749232257565,-1997.42,0.0002789,5]
[364764544,1749232257574,-480.0,0.0002789,5]
[364764545,1749232257586,-538.67,0.0002789,5]
[364764546,1749232257596,-617.13,0.0002789,5]
[364764547,1749232257607,-675.4,0.0002789,5]
[364764548,1749232257618,-1456.03,0.0002789,5]
[364764549,1749232257628,-786.44,0.0002789,5]
[364764550,1749232257638,-480.0,0.0002789,5]
[364764551,1749232257647,-480.0,0.0002789,5]
[364764552,1749232257755,-10592.65,0.0002789,5]
[364764553,1749232257773,-718.37,0.0002789,5]
[364764554,1749232257783,-1419.5,0.0002789,5]
[364764555,1749232257793,-480.0,0.0002789,5]
[364764556,1749232257802,-480.0,0.0002789,5]
[364764557,1749232257812,-480.0,0.0002789,5]
[364764558,1749232257821,-1116.9,0.0002789,5]
[364764559,1749232257831,-480.0,0.0002789,5]
[364764560,1749232257841,-532.82,0.0002789,5]
[364764561,1749232257851,-1541.9,0.0002789,5]
[364764562,1749232257860,-1308.73,0.0002789,5]
[364764563,1749232257870,-1427.53,0.0002789,5]
[364764564,1749232257879,-480.0,0.0002789,5]
[364764565,1749232257888,-515.9,0.0002789,5]
[364764566,1749232257898,-699.94,0.0002789,5]
[364764567,1749232257908,-1320.37,0.0002789,5]
[364764568,1749232257919,-480.0,0.0002789,5]
[364764569,1749232257928,-6585.63,0.0002789,5]
[364764570,1749232257938,-480.0,0.0002789,5]
[364764571,1749232257947,-543.07,0.0002789,5]
[364764572,1749232257957,-963.11,0.0002789,5]
[364764573,1749232257967,-480.0,0.0002789,5]
[364764574,1749232257976,-2238.96,0.0002789,5]
[364764575,1749232257986,-480.0,0.0002789,5]
[364764576,1749232257996,-480.0,0.0002789,5]
[364764577,1749232258006,-480.0,0.0002789,5]
[364764578,1749232258016,-503.82,0.0002789,5]
[364764579,1749232258028,-480.0,0.0002789,5]
[364764580,1749232258038,-5689.11,0.0002789,5]
[364764581,1749232258048,-480.0,0.0002789,5]
[364764582,1749232258058,-624.07,0.0002789,5]
[364764583,1749232258067,-502.56,0.0002789,5]
[364764584,1749232258077,-589.72,0.0002789,5]
[364764585,1749232258086,-480.0,0.0002789,5]
[364764586,1749232258096,-480.0,0.0002789,5]
[364764587,1749232258105,-480.0,0.0002789,5]
[364764588,1749232258114,-1738.52,0.0002789,5]
[364764589,1749232258124,-2039.06,0.0002789,5]
[364764590,1749232258133,-480.0,0.0002789,5]
[364764591,1749232258143,-480.0,0.0002789,5]
[364764592,1749232258152,-1704.16,0.0002789,5]
[364764593,1749232258161,-4049.17,0.0002789,5]
[364764594,1749232258171,-480.0,0.0002789,5]
[364764595,1749232258181,-2523.1,0.0002789,5]
[364764596,1749232258191,-480.0,0.0002789,5]
[364764597,1749232258201,-480.0,0.0002789,5]
[364764598,1749232258210,-480.0,0.0002789,5]
[364764599,1749232258220,-1489.66,0.0002789,5]
[364764600,1749232258229,-1394.31,0.0002789,5]
[364764601,1749232258239,-480.0,0.0002789,5]
[364764602,1749232258248,-13047.26,0.0002789,5]
[364764603,1749232258258,-480.0,0.0002789,5]
[364764604,1749232258268,-824.96,0.0002789,5]
[364764605,1749232258278,-480.0,0.0002789,5]
[364764606,1749232258289,-1833.77,0.0002789,5]
[364764607,1749232258298,-512.45,0.0002789,5]
[364764608,1749232258309,-480.0,0.0002789,5]
[364764609,1749232258319,-795.02,0.0002789,5]
[364764610,1749232258328,-960.81,0.0002789,5]
[364764611,1749232258338,-953.38,0.0002789,5]
[364764612,1749232258347,-585.62,0.0002789,5]
[364764613,1749232258357,-1623.99,0.0002789,5]
[364764614,1749232258367,-567.44,0.0002789,5]
[364764615,1749232258376,-1506.02,0.0002789,5]
[364764616,1749232258386,-667.23,0.0002789,5]
[364764617,1749232258396,-480.0,0.0002789,5]
[364764618,1749232258411,-200.14153648,0.0002789,5]
[364764619,1749232258423,-1950.34,0.0002789,5]
[364764620,1749232258434,-540.83,0.0002789,5]
[364764621,1749232258444,-2303.58,0.0002789,5]
[364764622,1749232258454,-1340.96,0.0002789,5]
[364764623,1749232258464,-480.0,0.0002789,5]
[364764624,1749232258473,-957.47,0.0002789,5]
[364764625,1749232258482,-606.43,0.0002789,5]
[364764626,1749232258492,-582.38,0.0002789,5]
[364764627,1749232258501,-2526.43,0.0002789,5]
[364764628,1749232258510,-480.0,0.0002789,5]
[364764629,1749232258520,-517.73,0.0002789,5]
[364764630,1749232258530,-486.12,0.0002789,5]
[364764631,1749232258540,-480.0,0.0002789,5]
[364764632,1749232258551,-480.0,0.0002789,5]
[364764633,1749232258560,-480.0,0.0002789,5]
[364764634,1749232258570,-480.0,0.0002789,2]
[364764635,1749232258580,-3628.25,0.0002789,5]
[364764636,1749232258589,-2448.87,0.0002789,5]
[364764637,1749232258599,-520.55,0.0002789,5]
[364764638,1749232258608,-480.0,0.0002789,5]
[364764639,1749232258618,-164.82,0.0002789,5]
[364764640,1749232258628,-567.01,0.0002789,5]
[364764641,1749232258637,-1108.87,0.0002789,5]
[364764642,1749232258647,-718.02,0.0002789,5]
[364764643,1749232258656,-46728.91,0.0002789,5]
[364764644,1749232258665,-618.44,0.0002789,5]
[364764645,1749232258675,-480.0,0.0002789,5]
[364764646,1749232258684,-480.0,0.0002789,5]
[364764647,1749232258693,-467.95198328,0.0002789,5]
[364764648,1749232258703,-490.28,0.0002789,5]
[364764649,1749232258712,-480.0,0.0002789,5]
[364764650,1749232258722,-1380.27,0.0002789,5]
[364764651,1749232258732,-4546.68,0.0002789,5]
[364764652,1749232258742,-1547.97,0.0002789,5]
[364764653,1749232258751,-2834.51,0.0002789,5]
[364764654,1749232258760,-150.0,0.00027893,2]
[364764655,1749232258770,-500.0,0.00027899,2]
[364764656,1749232258780,-4799.293659,0.00027935,2]
[364764657,1749232258790,-150.0,0.00027958,2]
[364764658,1749232258800,-500.0,0.00027972,7]
[364764659,1749232258808,-150.0,0.00028021,2]
[364764660,1749232258816,-692.83252447,0.00028038,18]
[364764661,1749232258825,-12124.47,0.0002805,2]
[364764662,1749232258833,-302.29,0.00028051,2]
[364764663,1749232258843,-300.77,0.00028051,2]
[364764664,1749232258852,-304.24,0.00028051,2]
[364764665,1749232258860,-500.0,0.00028052,5]
[364764666,1749232258869,-500.0,0.00028053,2]
[364764667,1749232258877,-500.0,0.00028053,5]
[364764668,1749232258886,-708.55,0.00028053,5]
[364764669,1749232258896,-708.55,0.00028053,5]
[364764670,1749232258905,-514.15,0.00028053,5]
[364764671,1749232258915,-514.15,0.00028053,5]
[364764672,1749232258925,-480.0,0.00028054,5]
[364764673,1749232258934,-480.0,0.00028054,5]
[364764674,1749232258945,-600.0,0.00028054,30]
[364764675,1749232258954,-480.0,0.00028054,5]
[364764676,1749232258964,-480.0,0.00028054,5]
[364764677,1749232258973,-480.0,0.00028054,5]
[364764678,1749232258983,-896.75,0.00028054,5]
[364764679,1749232258992,-480.0,0.00028054,5]
[364764680,1749232259001,-480.0,0.00028054,5]
[364764681,1749232259011,-480.0,0.00028054,5]
[364764682,1749232259021,-630.9,0.00028054,5]
[364764683,1749232259031,-480.0,0.00028054,5]
[364764684,1749232259041,-777.390373,0.00028054,5]
[364764685,1749232259050,-480.0,0.00028054,5]
[364764686,1749232259059,-480.0,0.00028054,5]
[364764687,1749232259069,-480.0,0.00028054,5]
[364764688,1749232259079,-480.0,0.00028054,5]
[364764689,1749232259088,-480.0,0.00028054,5]
[364764690,1749232259098,-928.199775,0.00028054,5]
[364764691,1749232259107,-481.88,0.00028054,5]
[364764692,1749232259116,-480.0,0.00028054,5]
[364764693,1749232259127,-480.0,0.00028054,5]
[364764694,1749232259137,-480.0,0.00028054,5]
[364764695,1749232259146,-480.0,0.00028054,5]
[364764696,1749232259156,-480.0,0.00028054,5]
[364764697,1749232259166,-480.0,0.00028054,5]
[364764698,1749232259175,-480.0,0.00028054,5]
[364764699,1749232259185,-1468.86,0.00028054,5]
[364764700,1749232259195,-480.0,0.00028054,5]
[364764701,1749232259204,-536.62,0.00028054,5]
[364764702,1749232259214,-480.0,0.00028054,5]
[364764703,1749232259223,-480.0,0.00028054,5]
[364764704,1749232259233,-1047.33,0.00028054,5]
[364764705,1749232259243,-480.0,0.00028054,5]
[364764706,1749232259252,-548.21,0.00028054,5]
[364764707,1749232259262,-480.0,0.00028054,5]
[364764708,1749232259271,-506.36,0.00028054,5]
[364764709,1749232259281,-655.25,0.00028054,5]
[364764710,1749232259290,-480.0,0.00028054,5]
[364764711,1749232259300,-562.91,0.00028054,5]
[364764712,1749232259309,-480.0,0.00028054,5]
[364764713,1749232259319,-681.75,0.00028054,5]
[364764714,1749232259329,-1022.98,0.00028054,5]
[364764715,1749232259338,-1085.93,0.00028054,5]
[364764716,1749232259348,-480.0,0.00028054,5]